bitfinex-derivatives/quotes_BTCF0:USTF0_20250805
["timestamp","ask_amount","ask_price","bid_price","bid_amount"]
[1754378880650,0.87156649,114320.0,114310.0,0.2035419]
[1754378880954,0.87156649,114320.0,114310.0,0.2025419]
[1754378881354,0.87156649,114320.0,114310.0,0.1310419]
[1754378881559,0.87156649,114320.0,114310.0,0.0843419]
[1754378882259,0.87156649,114320.0,114310.0,0.1168319]
[1754378882753,0.87156649,114320.0,114310.0,0.1650419]
[1754378882959,0.87156649,114320.0,114310.0,0.2030519]
[1754378883958,0.87156649,114320.0,114310.0,0.8041719]
[1754378884162,0.87156649,114320.0,114310.0,0.7803519]
[1754378884458,0.87156649,114320.0,114310.0,0.7661619]
[1754378885053,0.87156649,114320.0,114310.0,0.7341419]
[1754378885456,0.5409443,114320.0,114310.0,0.7341419]
[1754378885656,0.87156649,114320.0,114310.0,0.7341419]
[1754378885861,0.87156649,114320.0,114310.0,0.7666319]
[1754378887356,0.87156649,114320.0,114310.0,0.6854619]
[1754378888059,1.20218868,114320.0,114310.0,0.6854619]
[1754378888260,1.20218868,114320.0,114310.0,0.67616214]
[1754378889161,1.20218868,114320.0,114310.0,0.70865214]
[1754378889364,0.87156649,114320.0,114310.0,0.75733214]
[1754378889552,0.87156649,114320.0,114310.0,0.77152214]
[1754378890263,1.20218868,114320.0,114310.0,0.77152214]
[1754378890458,1.20218868,114320.0,114310.0,0.79534214]
[1754378891258,0.87156649,114320.0,114310.0,0.75733214]
[1754378891459,0.87156649,114320.0,114310.0,0.67616214]
[1754378891660,0.87156649,114320.0,114310.0,0.68523352]
[1754378891862,1.20218868,114320.0,114310.0,0.68523352]
[1754378892061,1.20218868,114320.0,114310.0,0.71772352]
[1754378892363,1.20218868,114320.0,114310.0,0.80441352]
[1754378892664,0.87156649,114320.0,114310.0,0.80441352]
[1754378895761,0.87156649,114320.0,114310.0,0.73391352]
[1754378895969,0.87156649,114320.0,114310.0,0.80441352]
[1754378896767,0.5409443,114320.0,114310.0,0.80441352]
[1754378897067,0.87156649,114320.0,114310.0,0.80441352]
[1754378912677,0.91316756,114320.0,114310.0,0.80441352]
[1754378913479,0.5409443,114320.0,114310.0,0.80441352]
[1754378913676,0.91316756,114320.0,114310.0,0.80441352]
[1754378918381,0.91316756,114320.0,114310.0,0.96168398]
[1754378921690,0.5409443,114320.0,114310.0,0.96168398]
[1754378921990,0.91316756,114320.0,114310.0,0.96168398]
[1754378926486,0.5409443,114320.0,114310.0,0.96168398]
[1754378926787,0.91316756,114320.0,114310.0,0.96168398]
[1754378932490,0.91316756,114320.0,114310.0,0.36056398]
[1754378941602,0.5409443,114320.0,114310.0,0.36056398]
[1754378941803,0.91316756,114320.0,114310.0,0.36056398]
[1754378953706,0.91316756,114320.0,114310.0,0.20329352]
[1754378955898,0.91316756,114320.0,114310.0,0.17947352]
[1754378956101,0.47926756,114320.0,114310.0,0.76476352]
[1754378956298,0.70046186,114320.0,114310.0,0.80349352]
[1754378957410,0.70046186,114320.0,114310.0,0.70564214]
[1754378957707,0.04623,114310.0,114280.0,1.48774592]
[1754378957907,1.02644282,114320.0,114280.0,1.48774592]
[1754378957908,0.96568662,114290.0,114280.0,1.48774592]
[1754378958107,0.96568662,114290.0,114280.0,1.28339]
[1754378958108,0.62278336,114290.0,114280.0,1.28339]
[1754378958308,0.63541336,114290.0,114280.0,1.28339]
[1754378958511,0.63541336,114290.0,114280.0,1.39152046]
[1754378958512,1.00763662,114290.0,114280.0,1.39152046]
[1754378958810,1.00763662,114290.0,114280.0,0.25221995]
[1754378959112,1.00763662,114290.0,114280.0,0.82876995]
[1754378959312,1.00763662,114290.0,114280.0,0.83076995]
[1754378959507,1.00763662,114290.0,114280.0,0.8397713]
[1754378959813,1.00763662,114290.0,114280.0,0.8640613]
[1754378960015,1.00763662,114290.0,114280.0,0.9607013]
[1754378960215,0.63541336,114290.0,114280.0,0.80343084]
[1754378960412,1.00763662,114290.0,114280.0,0.80343084]
[1754378960811,1.25713662,114290.0,114280.0,0.79442949]
[1754378961205,0.88491336,114290.0,114280.0,0.79442949]
[1754378961714,0.86679336,114290.0,114280.0,0.79442949]
[1754378962013,0.88491336,114290.0,114280.0,0.79442949]
[1754378963915,0.88491336,114290.0,114280.0,0.79474949]
[1754378964313,0.88491336,114290.0,114280.0,0.8041396]
[1754378964715,0.88491336,114290.0,114280.0,0.79474949]
[1754378964915,1.25713662,114290.0,114280.0,0.69810949]
[1754378965809,1.25713662,114290.0,114280.0,0.62909]
[1754378966718,0.88491336,114290.0,114280.0,0.71129]
[1754378966911,0.88491336,114290.0,114280.0,0.72573]
[1754378967917,1.25713662,114290.0,114280.0,0.72573]
[1754378968113,1.25713662,114290.0,114280.0,0.71129]
[1754378968513,1.25713662,114290.0,114280.0,0.6048]
[1754378968812,1.25713662,114290.0,114280.0,0.02829]
[1754378974216,0.5126901,114290.0,114280.0,0.02829]
[1754378974523,1.25713662,114290.0,114280.0,0.06081]
[1754378974921,0.88491336,114290.0,114280.0,0.06081]
[1754378975118,1.25713662,114290.0,114280.0,0.06081]
[1754378976223,0.5126901,114290.0,114280.0,0.06081]
[1754378976520,1.25713662,114290.0,114280.0,0.08618]
[1754378977622,1.25713662,114290.0,114280.0,0.12129]
[1754378980125,1.25713662,114290.0,114280.0,0.10723]
[1754378981424,0.5126901,114290.0,114280.0,0.10723]
[1754378981622,1.25713662,114290.0,114280.0,0.01324]
[1754378981815,1.25713662,114290.0,114280.0,0.004]
[1754378982522,1.25713662,114290.0,114280.0,0.02836]
[1754378995136,0.5126901,114290.0,114280.0,0.02836]
[1754378995434,1.25713662,114290.0,114280.0,0.02836]
[1754378997339,1.25713662,114290.0,114280.0,0.004]
[1754378999138,1.25713662,114290.0,114280.0,0.02836]
[1754378999941,1.25913662,114290.0,114280.0,0.02636]
[1754379000435,1.25913662,114290.0,114280.0,0.02436]
[1754379001341,0.2210558,114280.0,114270.0,0.74445941]
[1754379001540,1.00745232,114280.0,114270.0,0.69803941]
[1754379002041,1.00745232,114280.0,114270.0,0.73170941]
[1754379002443,1.00745232,114280.0,114270.0,0.77861941]
[1754379002848,1.00745232,114280.0,114270.0,0.79283941]
[1754379003848,1.00745232,114280.0,114270.0,0.79383941]
[1754379004441,1.00745232,114280.0,114270.0,0.69848941]
[1754379004849,1.00745232,114280.0,114270.0,0.79384941]
[1754379005543,1.00745232,114280.0,114270.0,0.07279941]
[1754379005544,0.98933232,114280.0,114270.0,0.07279941]
[1754379005851,0.2625412,114270.0,114260.0,0.11917]
[1754379006148,1.00698772,114270.0,114260.0,0.11917]
[1754379006643,1.00698772,114270.0,114260.0,0.19016738]
[1754379006850,1.2565875,114270.0,114260.0,0.19022929]
[1754379007050,1.2565875,114270.0,114260.0,0.80310929]
[1754379008647,1.2565875,114270.0,114260.0,0.19022929]
[1754379008850,0.42464088,114270.0,114260.0,1.3600084]
[1754379009052,0.79686414,114270.0,114260.0,1.6600084]
[1754379009440,0.79686414,114270.0,114260.0,1.28778514]
[1754379009851,1.1690874,114270.0,114260.0,0.67454504]
[1754379010651,1.1929174,114270.0,114260.0,0.67454504]
[1754379010854,0.42464088,114270.0,114260.0,0.67454504]
[1754379011150,1.1817174,114270.0,114260.0,0.37454504]
[1754379011350,1.1929174,114270.0,114260.0,0.19948864]
[1754379011544,1.2110374,114270.0,114260.0,0.19948864]
[1754379011747,1.2565874,114270.0,114260.0,0.19948864]
[1754379012647,1.2384674,114270.0,114260.0,0.19948864]
[1754379012949,1.2565874,114270.0,114260.0,0.19948864]
[1754379013754,0.51214088,114270.0,114260.0,0.19948864]
[1754379013951,0.51214088,114270.0,114260.0,0.81264864]
[1754379014147,1.2565874,114270.0,114260.0,0.81264864]
[1754379014550,1.2384674,114270.0,114260.0,0.81264864]
[1754379015152,0.49402088,114270.0,114260.0,0.81264864]
[1754379015352,1.2565874,114270.0,114260.0,0.81264864]
[1754379015552,1.2585874,114270.0,114260.0,0.81264864]
[1754379017147,0.51414088,114270.0,114260.0,0.81264864]
[1754379017354,1.2585874,114270.0,114260.0,0.81264864]
[1754379021659,0.51414088,114270.0,114260.0,0.81264864]
[1754379021858,1.2585874,114270.0,114260.0,0.81264864]
[1754379023160,0.51414088,114270.0,114260.0,0.81264864]
[1754379023560,1.2585874,114270.0,114260.0,0.81264864]
[1754379023756,1.2585874,114270.0,114260.0,0.71728864]
[1754379023961,1.2585874,114270.0,114260.0,6.191e-05]
[1754379024156,1.2585874,114270.0,114260.0,0.61354191]
[1754379025950,1.2585874,114270.0,114260.0,0.63735191]
[1754379026862,0.84536724,114270.0,114260.0,0.63735191]
[1754379029058,0.84536724,114270.0,114260.0,0.67102191]
[1754379029359,0.82724724,114270.0,114260.0,0.73271191]
[1754379029961,0.82724724,114270.0,114260.0,0.11923191]
[1754379030162,0.49602088,114270.0,114260.0,0.11923191]
[1754379030358,0.82724724,114270.0,114260.0,0.11923191]
[1754379030560,0.75786724,114270.0,114260.0,0.11923191]
[1754379030762,0.42664088,114270.0,114260.0,0.11923191]
[1754379030962,0.42664088,114270.0,114260.0,0.29428751]
[1754379033169,0.75786724,114270.0,114260.0,0.29428751]
[1754379033472,0.42664088,114270.0,114260.0,0.29428751]
[1754379033672,0.75786724,114270.0,114260.0,0.29428751]
[1754379035971,0.77049724,114270.0,114260.0,0.29428751]
[1754379036675,0.77049724,114270.0,114260.0,0.45155797]
[1754379036867,0.43927088,114270.0,114260.0,0.45155797]
[1754379037171,0.42664088,114270.0,114260.0,0.78278433]
[1754379037772,0.42664088,114270.0,114260.0,0.45155797]
[1754379037973,0.42664088,114270.0,114260.0,1.25781633]
[1754379038872,0.42664088,114270.0,114260.0,0.92658997]
[1754379039076,0.42664088,114270.0,114260.0,1.30490179]
[1754379039374,0.17714088,114270.0,114260.0,1.30490179]
[1754379039575,0.20804088,114270.0,114260.0,1.30490179]
[1754379039875,0.22074088,114270.0,114260.0,1.30490179]
[1754379040070,0.17714088,114270.0,114260.0,0.97367543]
[1754379040273,0.17714088,114270.0,114260.0,0.76931951]
[1754379040473,0.17714088,114270.0,114260.0,1.10054587]
[1754379041275,0.17714088,114270.0,114260.0,1.25786272]
[1754379041776,0.17514088,114270.0,114260.0,0.92663636]
[1754379041973,0.17514088,114270.0,114260.0,0.62663636]
[1754379042571,0.17514088,114270.0,114260.0,0.45160436]
[1754379042777,0.57602724,114270.0,114260.0,0.29428751]
[1754379042970,0.59414724,114270.0,114260.0,0.29428751]
[1754379043876,0.59414724,114270.0,114260.0,0.11923191]
[1754379044278,0.57802724,114270.0,114260.0,0.04980191]
[1754379044472,0.59614724,114270.0,114260.0,0.12007191]
[1754379044877,0.26492088,114270.0,114260.0,6.191e-05]
[1754379045076,0.59614724,114270.0,114260.0,6.191e-05]
[1754379045570,0.26492088,114270.0,114260.0,0.02502191]
[1754379045766,0.59614724,114270.0,114260.0,0.02502191]
[1754379048076,0.84564724,114270.0,114260.0,0.02502191]
[1754379048466,0.59614724,114270.0,114260.0,0.02502191]
[1754379048668,0.84564724,114270.0,114260.0,0.02502191]
[1754379050078,0.84564724,114270.0,114260.0,0.63782191]
[1754379050273,0.51442088,114270.0,114260.0,0.63782191]
[1754379050479,0.84564724,114270.0,114260.0,0.63782191]
[1754379050678,0.84564724,114270.0,114260.0,0.90907811]
[1754379051081,0.84564724,114270.0,114260.0,0.73402191]
[1754379052176,0.51442088,114270.0,114260.0,0.73402191]
[1754379052383,0.84564724,114270.0,114260.0,0.73402191]
[1754379053084,0.84564724,114270.0,114260.0,0.90907811]
[1754379053281,0.84564724,114270.0,114260.0,0.73402191]
[1754379060189,0.51442088,114270.0,114260.0,0.90907811]
[1754379060483,0.84564724,114270.0,114260.0,0.89133876]
[1754379061392,0.84564724,114270.0,114260.0,0.73402191]
[1754379063594,0.51442088,114270.0,114260.0,0.90907841]
[1754379063797,0.82752724,114270.0,114260.0,0.90907841]
[1754379064293,0.80369724,114270.0,114260.0,0.29627841]
[1754379064495,0.49630088,114270.0,114260.0,0.29627841]
[1754379064697,0.82752724,114270.0,114260.0,0.29627841]
[1754379065196,0.49630088,114270.0,114260.0,0.29627841]
[1754379065496,0.82752724,114270.0,114260.0,0.29627841]
[1754379066298,0.49630088,114270.0,114260.0,0.29627841]
[1754379066495,0.82752724,114270.0,114260.0,0.29627841]
[1754379067196,0.84564724,114270.0,114260.0,0.29627841]
[1754379069899,0.51442088,114270.0,114260.0,0.29627841]
[1754379070101,0.84564724,114270.0,114260.0,0.29627841]
[1754379071199,0.42664088,114270.0,114260.0,0.29627841]
[1754379072304,0.43927088,114270.0,114260.0,0.29627841]
[1754379072496,0.77978724,114270.0,114260.0,0.29627841]
[1754379072696,0.47525088,114270.0,114260.0,0.29627841]
[1754379073201,0.80647724,114270.0,114260.0,0.29627841]
[1754379074200,0.47525088,114270.0,114260.0,0.29627841]
[1754379076602,0.47525088,114270.0,114260.0,0.45359526]
[1754379077707,0.47525088,114270.0,114260.0,0.78482162]
[1754379077708,0.42664088,114270.0,114260.0,0.78482162]
[1754379079506,0.25159978,114270.0,114260.0,0.78482162]
[1754379079700,0.42664088,114270.0,114260.0,0.78482162]
[1754379079906,0.25159978,114270.0,114260.0,0.78482162]
[1754379080304,0.42664088,114270.0,114260.0,0.78482162]
[1754379080505,0.42664088,114270.0,114260.0,0.45359526]
[1754379080704,0.42664088,114270.0,114260.0,0.78482162]
[1754379080906,0.17714088,114270.0,114260.0,0.78482162]
[1754379082011,0.00209978,114270.0,114260.0,0.78482162]
[1754379083308,0.00209978,114270.0,114260.0,0.78582162]
[1754379083608,9.978e-05,114270.0,114260.0,1.05062162]
[1754379083806,9.978e-05,114270.0,114260.0,1.04962162]
[1754379084208,0.17514088,114270.0,114260.0,1.04962162]
[1754379084810,0.17514088,114270.0,114260.0,0.89230477]
[1754379086214,0.17514088,114270.0,114260.0,1.04957739]
[1754379087514,0.17514088,114270.0,114260.0,0.71835103]
[1754379087721,0.17514088,114270.0,114260.0,1.04957739]
[1754379088323,0.17514088,114270.0,114260.0,0.71835103]
[1754379088524,0.17514088,114270.0,114260.0,1.04957739]
[1754379090625,0.17514088,114270.0,114260.0,1.09070448]
[1754379091322,9.978e-05,114270.0,114260.0,1.09070448]
[1754379091523,0.17514098,114270.0,114260.0,1.09070448]
[1754379092626,0.17514098,114270.0,114260.0,0.71835103]
[1754379092826,0.17514098,114270.0,114260.0,1.09070448]
[1754379094030,0.17514098,114270.0,114260.0,0.71835103]
[1754379094229,0.17514098,114270.0,114260.0,1.09070448]
[1754379095429,9.978e-05,114270.0,114260.0,1.09070448]
[1754379097719,9.978e-05,114270.0,114260.0,1.67328993]
[1754379098022,9.978e-05,114270.0,114260.0,1.37328993]
[1754379098218,0.95284555,114290.0,114280.0,0.2220959]
[1754379098422,0.95284555,114290.0,114280.0,0.66491935]
[1754379098621,0.424524,114290.0,114280.0,0.66491935]
[1754379098929,0.4245106,114290.0,114280.0,0.66491935]
[1754379099432,0.4265106,114290.0,114280.0,0.66491935]
[1754379099828,0.4747606,114290.0,114280.0,0.66491935]
[1754379100025,0.86732405,114290.0,114280.0,0.66491935]
[1754379100425,0.4949706,114290.0,114280.0,0.66491935]
[1754379100625,0.4949706,114290.0,114280.0,0.62346479]
[1754379103736,0.2515,114290.0,114280.0,0.62346479]
[1754379103932,0.002,114290.0,114280.0,0.62346479]
[1754379105429,0.1770106,114290.0,114280.0,0.62346479]
[1754379105828,0.002,114290.0,114280.0,0.62346479]
[1754379106334,0.002,114290.0,114280.0,0.78068698]
[1754379107037,0.002,114290.0,114280.0,1.04548698]
[1754379107936,0.1770105,114290.0,114280.0,0.88826479]
[1754379108532,0.1770105,114290.0,114280.0,0.5573659]
[1754379108734,0.1896405,114290.0,114280.0,0.88826479]
[1754379108941,0.2008405,114290.0,114280.0,1.04550699]
[1754379109536,0.2454705,114290.0,114280.0,0.7146081]
[1754379110138,0.2252605,114290.0,114280.0,1.04550699]
[1754379111138,0.2252605,114290.0,114280.0,0.7146081]
[1754379111338,0.2252605,114290.0,114280.0,1.04550699]
[1754379112538,0.2252605,114290.0,114280.0,2.25562699]
[1754379113636,0.2252605,114290.0,114280.0,1.04550699]
[1754379113836,0.2252605,114290.0,114280.0,2.25562699]
[1754379114140,0.2252605,114290.0,114280.0,1.9247281]
[1754379114341,0.2252605,114290.0,114280.0,2.25562699]
[1754379114936,0.2454705,114290.0,114280.0,2.25562699]
[1754379115638,0.1896405,114290.0,114280.0,2.25562699]
[1754379115840,0.1770105,114290.0,114280.0,2.25562699]
[1754379116841,0.1770105,114290.0,114280.0,2.09838479]
[1754379117742,0.1770105,114290.0,114280.0,1.7674859]
[1754379117943,0.1770105,114290.0,114280.0,2.09838479]
[1754379118646,0.002,114290.0,114280.0,2.09838479]
[1754379118846,0.1770106,114290.0,114280.0,2.09838479]
[1754379119546,0.002,114290.0,114280.0,2.42928368]
[1754379119749,0.5266142,114310.0,114300.0,0.2925352]
[1754379119949,0.5266142,114310.0,114300.0,0.64091685]
[1754379120451,0.4244893,114310.0,114300.0,0.31001796]
[1754379121253,0.4264893,114310.0,114300.0,0.31001796]
[1754379121950,0.2277493,114310.0,114300.0,0.31001796]
[1754379122151,0.2509793,114310.0,114300.0,0.31001796]
[1754379122452,0.2549793,114310.0,114300.0,0.31001796]
[1754379124452,0.58587819,114310.0,114300.0,0.31001796]
[1754379126747,0.2549793,114310.0,114300.0,0.31001796]
[1754379127053,0.2549793,114310.0,114300.0,0.46725261]
[1754379127753,0.58587819,114310.0,114300.0,0.46725261]
[1754379127951,0.2549793,114310.0,114300.0,0.46725261]
[1754379130055,0.2549793,114310.0,114300.0,0.31001796]
[1754379130248,0.2549793,114310.0,114300.0,0.46728031]
[1754379131154,0.2549793,114310.0,114300.0,0.31001796]
[1754379131355,0.2549793,114310.0,114300.0,0.46728204]
[1754379134954,0.1809893,114310.0,114300.0,0.46728204]
[1754379135556,0.1956193,114310.0,114300.0,0.46728204]
[1754379135856,0.2317493,114310.0,114300.0,0.46728204]
[1754379137463,0.2317493,114310.0,114300.0,0.79818093]
[1754379137763,0.2317493,114310.0,114300.0,0.46728204]
[1754379139363,0.2317493,114310.0,114300.0,0.31001796]
[1754379140458,0.2317493,114310.0,114300.0,0.64091685]
[1754379141268,0.2317493,114310.0,114300.0,0.79819991]
[1754379141664,0.2205493,114310.0,114300.0,0.79819991]
[1754379142264,0.1809893,114310.0,114300.0,0.79819991]
[1754379142660,0.55313339,114310.0,114300.0,0.46730102]
[1754379142867,0.62712339,114310.0,114300.0,0.83944511]
[1754379143065,0.62712339,114310.0,114300.0,0.46730102]
[1754379143467,0.64524339,114310.0,114300.0,0.83944511]
[1754379143668,0.64524339,114310.0,114300.0,0.46730102]
[1754379143865,0.64524339,114310.0,114300.0,0.83944511]
[1754379144666,0.6039378,114310.0,114300.0,0.46730102]
[1754379144860,0.6039378,114310.0,114300.0,0.34976102]
[1754379145066,0.6039378,114310.0,114300.0,0.37315102]
[1754379145261,0.6039378,114310.0,114300.0,0.21586796]
[1754379146064,0.6039378,114310.0,114300.0,0.40482102]
[1754379147267,0.6039378,114310.0,114300.0,0.19815582]
[1754379147669,0.6039378,114310.0,114300.0,0.04087276]
[1754379148470,0.6039378,114310.0,114300.0,0.21586776]
[1754379149168,0.6039378,114310.0,114300.0,0.29522776]
[1754379149364,0.6039378,114310.0,114300.0,0.29159582]
[1754379149565,0.6039378,114310.0,114300.0,0.27751582]
[1754379150166,0.6039378,114310.0,114300.0,0.24584582]
[1754379150570,0.6039378,114310.0,114300.0,0.15728306]
[1754379151774,0.221665,114300.0,114290.0,0.47878316]
[1754379151968,0.5964535,114300.0,114290.0,0.49350316]
[1754379152164,0.265615,114300.0,114290.0,0.49350316]
[1754379152370,0.5964535,114300.0,114290.0,0.44975076]
[1754379153475,0.5974535,114300.0,114290.0,0.44975076]
[1754379154472,0.248495,114300.0,114290.0,0.44975076]
[1754379155277,0.250495,114300.0,114290.0,0.44975076]
[1754379155477,0.5813335,114300.0,114290.0,0.44975076]
[1754379156978,0.5994535,114300.0,114290.0,0.44975076]
[1754379158375,0.5994535,114300.0,114290.0,0.45235356]
[1754379158982,0.5994535,114300.0,114290.0,0.2950705]
[1754379160081,0.268615,114300.0,114290.0,0.2950705]
[1754379160282,0.5994535,114300.0,114290.0,0.2950705]
[1754379160986,0.268615,114300.0,114290.0,0.2799305]
[1754379161180,0.5994535,114300.0,114290.0,0.2456705]
[1754379161381,0.5994535,114300.0,114290.0,0.2946505]
[1754379161785,0.5994535,114300.0,114290.0,0.11964]
[1754379161982,0.1750105,114290.0,114280.0,1.50918]
[1754379162181,0.596469,114290.0,114280.0,1.92689172]
[1754379162386,0.2656305,114290.0,114280.0,1.92689172]
[1754379162588,0.596469,114290.0,114280.0,1.92689172]
[1754379163188,0.596469,114290.0,114280.0,0.76382172]
[1754379164289,0.597469,114290.0,114280.0,0.76382172]
[1754379164591,0.597469,114290.0,114280.0,0.5594658]
[1754379164783,0.63896363,114290.0,114280.0,0.5594658]
[1754379165282,0.63896363,114290.0,114280.0,0.38444]
[1754379165483,0.63896363,114290.0,114280.0,0.5594658]
[1754379166092,0.2666305,114290.0,114280.0,0.5594658]
[1754379166283,0.63896363,114290.0,114280.0,0.2946658]
[1754379169891,0.2666305,114290.0,114280.0,0.2946658]
[1754379170095,0.63896363,114290.0,114280.0,0.2946658]
[1754379173195,0.2666305,114290.0,114280.0,0.2946658]
[1754379173392,0.63896363,114290.0,114280.0,0.2946658]
[1754379174289,0.2666305,114290.0,114280.0,0.2946658]
[1754379174491,0.63896363,114290.0,114280.0,0.2946658]
[1754379174902,0.2666305,114290.0,114280.0,0.2946658]
[1754379175195,0.63896363,114290.0,114280.0,0.2946658]
[1754379175994,0.2666305,114290.0,114280.0,0.2946658]
[1754379176796,0.62084363,114290.0,114280.0,0.66699893]
[1754379177196,0.62084363,114290.0,114280.0,0.82430073]
[1754379177391,0.62084363,114290.0,114280.0,0.4519676]
[1754379177593,0.2485105,114290.0,114280.0,0.82430073]
[1754379177994,0.62084363,114290.0,114280.0,0.82430073]
[1754379178294,0.62084363,114290.0,114280.0,0.4519676]
[1754379178494,0.63896363,114290.0,114280.0,0.4519676]
[1754379180395,0.2666305,114290.0,114280.0,0.4519676]
[1754379180595,0.62084363,114290.0,114280.0,0.4519676]
[1754379180796,0.2666305,114290.0,114280.0,0.4519676]
[1754379180993,0.63896363,114290.0,114280.0,0.4519676]
[1754379181297,0.63896363,114290.0,114280.0,0.11964]
[1754379181496,0.265646,114280.0,114270.0,0.62072754]
[1754379181700,0.63797913,114280.0,114270.0,0.35592754]
[1754379182002,0.63797913,114280.0,114270.0,0.13713874]
[1754379182196,0.63797913,114280.0,114270.0,0.31217994]
[1754379182798,0.265646,114280.0,114270.0,0.31217994]
[1754379183000,0.265646,114280.0,114270.0,0.46948174]
[1754379184003,0.265646,114280.0,114270.0,0.47048174]
[1754379185199,0.265646,114280.0,114270.0,0.67483766]
[1754379185395,0.265646,114280.0,114270.0,0.51753586]
[1754379185596,0.265646,114280.0,114270.0,0.51653586]
[1754379185804,0.266646,114280.0,114270.0,0.51653586]
[1754379186298,0.266646,114280.0,114270.0,0.31217994]
[1754379186802,0.57958204,114280.0,114270.0,0.31217994]
[1754379187008,0.248526,114280.0,114270.0,0.31217994]
[1754379187804,0.1760261,114280.0,114270.0,0.64323598]
[1754379189205,0.1760261,114280.0,114270.0,0.31217994]
[1754379189396,0.1750261,114280.0,114270.0,0.64323598]
[1754379189597,0.1750261,114280.0,114270.0,0.64423598]
[1754379191004,0.1750261,114280.0,114270.0,0.31317994]
[1754379191204,0.1750261,114280.0,114270.0,0.64423598]
[1754379191503,0.1750261,114280.0,114270.0,0.31317994]
[1754379191694,0.1750261,114280.0,114270.0,0.64423598]
[1754379192107,0.1750261,114280.0,114270.0,0.31317994]
[1754379192404,0.1896561,114280.0,114270.0,0.31317994]
[1754379192905,0.1896561,114280.0,114270.0,0.57797994]
[1754379193600,0.1896561,114280.0,114270.0,0.78233586]
[1754379195409,0.1896561,114280.0,114270.0,1.1133919]
[1754379197308,0.1896561,114280.0,114270.0,0.78233586]
[1754379198411,0.91763818,114280.0,114270.0,0.20535592]
[1754379198614,0.92883818,114280.0,114270.0,0.362881]
[1754379199613,1.22883818,114280.0,114270.0,0.15852508]
[1754379199814,1.22883818,114280.0,114270.0,0.69752878]
[1754379199815,1.40385418,114280.0,114270.0,0.69752878]
[1754379200012,1.65335418,114280.0,114270.0,0.60552]
[1754379200314,0.2667567,114260.0,114250.0,0.20071413]
[1754379200514,0.59781274,114260.0,114250.0,0.20071413]
[1754379201106,0.59781274,114260.0,114250.0,0.15262413]
[1754379201303,0.59781274,114260.0,114250.0,0.18625413]
[1754379201914,0.59781274,114260.0,114250.0,0.20071413]
[1754379202315,0.84731274,114260.0,114250.0,0.20071413]
[1754379203209,0.84731274,114260.0,114250.0,0.15262413]
[1754379203515,0.84731274,114260.0,114250.0,0.10425413]
[1754379203819,0.5162567,114260.0,114250.0,0.10425413]
[1754379204010,0.84731274,114260.0,114250.0,0.10425413]
[1754379204209,0.84731274,114260.0,114250.0,0.16325413]
[1754379206217,0.5162567,114260.0,114250.0,0.16325413]
[1754379206412,0.84731274,114260.0,114250.0,0.16325413]
[1754379206611,0.5162567,114260.0,114250.0,0.16325413]
[1754379206918,0.2667567,114260.0,114250.0,0.16325413]
[1754379207113,0.2667567,114260.0,114250.0,0.12962413]
[1754379207319,0.84731274,114260.0,114250.0,0.12962413]
[1754379210016,0.84731274,114260.0,114250.0,0.20071413]
[1754379213010,0.84731274,114260.0,114250.0,0.07959413]
[1754379213210,0.84731274,114260.0,114250.0,0.02364]
[1754379213514,0.84731274,114260.0,114250.0,0.62908]
[1754379214017,0.84731274,114260.0,114250.0,0.66221]
[1754379214215,0.84731274,114260.0,114250.0,0.65434]
[1754379214521,0.84731274,114260.0,114250.0,0.62908]
[1754379214921,0.84731274,114260.0,114250.0,0.70009]
[1754379215112,0.84731274,114260.0,114250.0,0.7235]
[1754379215915,0.5162567,114260.0,114250.0,0.62908]
[1754379216222,0.84731274,114260.0,114250.0,0.63778901]
[1754379216418,0.84731274,114260.0,114250.0,0.63742901]
[1754379217221,0.84731274,114260.0,114250.0,0.61378901]
[1754379217427,0.84731274,114260.0,114250.0,0.60508]
[1754379217721,0.84731274,114260.0,114250.0,0.62872]
[1754379218023,0.84731274,114260.0,114250.0,0.69994488]
[1754379218322,0.84731274,114260.0,114250.0,0.60508]
[1754379219023,0.84731274,114260.0,114250.0,0.61416029]
[1754379219423,0.84731274,114260.0,114250.0,0.00908029]
[1754379219617,0.2127918,114250.0,114240.0,0.72302]
[1754379219924,0.59775784,114250.0,114240.0,0.72302]
[1754379220929,0.59775784,114250.0,114240.0,0.72402]
[1754379221120,0.59775784,114250.0,114240.0,0.72502]
[1754379221623,0.2667018,114250.0,114240.0,0.9001071]
[1754379221826,0.59775784,114250.0,114240.0,0.72502]
[1754379222222,0.59775784,114250.0,114240.0,0.70202808]
[1754379222419,0.59775784,114250.0,114240.0,0.78204808]
[1754379222824,0.59775784,114250.0,114240.0,0.79644808]
[1754379223131,0.59775784,114250.0,114240.0,0.80517583]
[1754379223732,0.2667018,114250.0,114240.0,0.80517583]
[1754379223932,0.59775784,114250.0,114240.0,0.98026293]
[1754379224231,0.59775784,114250.0,114240.0,0.80517583]
[1754379225233,0.59775784,114250.0,114240.0,0.20021583]
[1754379227536,0.2667018,114250.0,114240.0,0.20021583]
[1754379227736,0.59775784,114250.0,114240.0,0.20021583]
[1754379228436,0.59775784,114250.0,114240.0,0.37530283]
[1754379228935,0.59775784,114250.0,114240.0,0.20021583]
[1754379229336,0.59775784,114250.0,114240.0,0.80601583]
[1754379231145,0.84725784,114250.0,114240.0,0.80601583]
[1754379232340,1.17831388,114250.0,114240.0,0.08215583]
[1754379232648,1.17831388,114250.0,114240.0,0.6076]
[1754379232840,1.17831388,114250.0,114240.0,0.63124]
[1754379233344,1.17831388,114250.0,114240.0,0.002]
[1754379233540,1.17831388,114250.0,114240.0,0.63124]
[1754379235342,1.17831388,114250.0,114240.0,0.02564]
[1754379235540,1.17831388,114250.0,114240.0,0.6324]
[1754379236245,1.17831388,114250.0,114240.0,0.02564]
[1754379236246,0.5162018,114250.0,114240.0,0.02564]
[1754379236447,0.84725784,114250.0,114240.0,0.02564]
[1754379236647,0.84725784,114250.0,114240.0,0.12006]
[1754379237943,0.84725784,114250.0,114240.0,0.002]
[1754379237944,0.5162018,114250.0,114240.0,0.002]
[1754379238146,0.84725784,114250.0,114240.0,0.002]
[1754379238445,0.5162018,114250.0,114240.0,0.002]
[1754379238636,1.17831388,114250.0,114240.0,0.002]
[1754379239037,0.2667171,114240.0,114230.0,0.03249283]
[1754379239240,0.92882918,114240.0,114230.0,0.02364]
[1754379239945,1.17832918,114240.0,114230.0,0.02364]
[1754379240140,0.5162171,114240.0,114230.0,0.02364]
[1754379240348,1.17832918,114240.0,114230.0,0.05677]
[1754379240847,1.17832918,114240.0,114230.0,0.11806]
[1754379241150,0.2374124,114230.0,114220.0,0.08002]
[1754379241440,0.1751024,114230.0,114220.0,0.18728631]
[1754379241645,0.50615844,114230.0,114220.0,0.81309931]
[1754379241851,0.1897324,114230.0,114220.0,0.81309931]
[1754379242145,0.50615844,114230.0,114220.0,0.81309931]
[1754379242648,0.2260024,114230.0,114220.0,0.81309931]
[1754379242837,0.55705844,114230.0,114220.0,0.81309931]
[1754379243037,0.2502624,114230.0,114220.0,0.81309931]
[1754379243244,0.58131844,114230.0,114220.0,0.81309931]
[1754379243446,0.59943844,114230.0,114220.0,0.81309931]